bitfinex/quotes_BTCUSD_20250518
["timestamp","ask_amount","ask_price","bid_price","bid_amount"]
[1747558670612,0.22241325,103900.0,103890.0,0.79071126]
[1747558671022,0.22241325,103900.0,103890.0,0.78108607]
[1747558672267,0.22241325,103900.0,103890.0,0.77146079]
[1747558672415,0.21278917,103900.0,103890.0,0.77146079]
[1747558672623,0.21278917,103900.0,103890.0,0.78108607]
[1747558674165,0.21278917,103900.0,103890.0,0.77146079]
[1747558675199,0.21278917,103900.0,103890.0,0.76183541]
[1747558675583,0.21278917,103900.0,103890.0,0.77146079]
[1747558677297,0.21278917,103900.0,103890.0,0.78684232]
[1747558677653,0.21278917,103900.0,103890.0,0.77721694]
[1747558680236,0.21278917,103900.0,103890.0,0.76759147]
[1747558680370,0.21278917,103900.0,103890.0,0.77721703]
[1747558680594,0.20316463,103900.0,103890.0,0.5750804]
[1747558680826,0.20316463,103900.0,103890.0,0.58470596]
[1747558681037,0.20316463,103900.0,103890.0,0.58470587]
[1747558681240,0.20316463,103900.0,103890.0,0.5750804]
[1747558681480,0.20316463,103900.0,103890.0,0.59433143]
[1747558682417,0.20316463,103900.0,103890.0,0.58470596]
[1747558684451,0.20316463,103900.0,103890.0,0.96643285]
[1747558684900,0.20316463,103900.0,103890.0,0.95680729]
[1747558685103,0.20316463,103900.0,103890.0,0.96643285]
[1747558686207,0.20316463,103900.0,103890.0,0.95680729]
[1747558686415,0.20316463,103900.0,103890.0,0.96643285]
[1747558691577,0.20316463,103900.0,103890.0,0.97605832]
[1747558691858,0.20316463,103900.0,103890.0,0.96643285]
[1747558692098,0.20316463,103900.0,103890.0,0.97605832]
[1747558694087,0.20316463,103900.0,103890.0,0.95680729]
[1747558694291,0.20316463,103900.0,103890.0,0.96643285]
[1747558695147,0.20316463,103900.0,103890.0,0.95680729]
[1747558696282,0.20316463,103900.0,103890.0,0.96643285]
[1747558696482,0.20316463,103900.0,103890.0,0.95680729]
[1747558697328,0.19354,103900.0,103890.0,0.93920729]
[1747558697538,0.19354,103900.0,103890.0,0.95870729]
[1747558700834,0.19354,103900.0,103890.0,0.93920729]
[1747558702785,0.19354,103900.0,103890.0,0.92060729]
[1747558704310,0.19354,103900.0,103890.0,0.91960729]
[1747558710674,0.37374,103900.0,103890.0,0.91960729]
[1747558713804,0.41674,103900.0,103890.0,0.91960729]
[1747558714595,0.37374,103900.0,103890.0,0.91960729]
[1747558716091,0.41674,103900.0,103890.0,0.91960729]
[1747558719378,0.41674,103900.0,103890.0,0.91712729]
[1747558763571,0.36647222,103900.0,103890.0,0.91712729]
[1747558770032,0.19589676,103900.0,103890.0,0.91712729]
[1747558770241,0.20552102,103900.0,103890.0,0.91712729]
[1747558777528,0.20552102,103900.0,103890.0,0.41960729]
[1747558784253,0.38544102,103900.0,103890.0,0.41960729]
[1747558784658,0.39523533,103900.0,103890.0,0.41960729]
[1747558785299,0.38544102,103900.0,103890.0,0.41960729]
[1747558789301,0.39525557,103900.0,103890.0,0.41960729]
[1747558789505,0.38544102,103900.0,103890.0,0.41960729]
[1747558789909,0.38296102,103900.0,103890.0,0.41960729]
[1747558790974,0.37333676,103900.0,103890.0,0.41960729]
[1747558800787,0.19341676,103900.0,103890.0,0.41960729]
[1747558801209,0.37321676,103900.0,103890.0,0.41960729]
[1747558801865,0.40208937,103900.0,103890.0,0.62174398]
[1747558802070,0.40208937,103900.0,103890.0,0.63136944]
[1747558802071,0.39246483,103900.0,103890.0,0.63136944]
[1747558802274,0.40208937,103900.0,103890.0,0.63136954]
[1747558802761,0.40208937,103900.0,103890.0,0.63136963]
[1747558803170,0.40208937,103900.0,103890.0,0.65062029]
[1747558803382,0.40208937,103900.0,103890.0,0.63136963]
[1747558803586,0.411714,103900.0,103890.0,0.63136963]
[1747558804191,0.411714,103900.0,103890.0,0.62174416]
[1747558804375,0.411714,103900.0,103890.0,0.43885832]
[1747558806939,0.40208937,103900.0,103890.0,0.43885832]
[1747558807415,0.40208928,103900.0,103890.0,0.64099501]
[1747558807744,0.41171382,103900.0,103890.0,0.64099501]
[1747558808506,0.40208928,103900.0,103890.0,0.65062029]
[1747558808709,0.41171391,103900.0,103890.0,0.63136963]
[1747558809119,0.00104722,103900.0,103890.0,1.31091442]
[1747558809321,0.00104722,103900.0,103890.0,1.32545527]
[1747558809702,0.2211,103930.0,103920.0,0.22132296]
[1747558809921,0.19146845,103930.0,103920.0,0.60623296]
[1747558810254,0.24038984,103930.0,103920.0,0.60623296]
[1747558810383,0.24038984,103930.0,103920.0,0.68623296]
[1747558810598,0.23076845,103930.0,103920.0,0.68623296]
[1747558811001,0.24038994,103930.0,103920.0,0.68623296]
[1747558811665,0.24038994,103930.0,103920.0,0.68723296]
[1747558811886,0.01166836,103930.0,103920.0,0.69645872]
[1747558812047,0.02128966,103930.0,103920.0,0.69645872]
[1747558812254,0.23382687,103930.0,103920.0,0.67721418]
[1747558812457,0.27326984,103930.0,103920.0,0.70592195]
[1747558812660,0.27326984,103930.0,103920.0,0.71554418]
[1747558812863,0.27326975,103930.0,103920.0,0.74505296]
[1747558813190,0.27326975,103930.0,103920.0,0.75654491]
[1747558813424,0.26364826,103930.0,103920.0,0.75654491]
[1747558813939,0.27326984,103930.0,103920.0,0.74692278]
[1747558814506,0.27326984,103930.0,103920.0,0.75654491]
[1747558814708,0.27326984,103930.0,103920.0,0.74692278]
[1747558816310,0.27326975,103930.0,103920.0,0.74692278]
[1747558816724,0.28289133,103930.0,103920.0,0.74692278]
[1747558816987,0.00304724,103930.0,103920.0,1.42167516]
[1747558817920,0.00304724,103930.0,103920.0,1.42067516]
[1747558818062,0.00404724,103930.0,103920.0,1.42467516]
[1747558818679,0.02161926,103950.0,103940.0,0.22128038]
[1747558818878,0.02166649,103950.0,103940.0,0.78580038]
[1747558819379,0.02166649,103950.0,103940.0,0.79781242]
[1747558820177,0.02266649,103950.0,103940.0,0.79781242]
[1747558820556,0.03228585,103950.0,103940.0,0.79781242]
[1747558820954,0.05152521,103950.0,103940.0,0.61813242]
[1747558821187,0.27360715,103950.0,103940.0,0.39685204]
[1747558821397,0.26398733,103950.0,103940.0,0.39685204]
[1747558821601,0.26398733,103950.0,103940.0,0.59989167]
[1747558822032,0.26398733,103950.0,103940.0,0.60951242]
[1747558822647,0.07158668,103950.0,103940.0,0.62875326]
[1747558823008,0.09082595,103950.0,103940.0,0.62875326]
[1747558823238,0.10044595,103950.0,103940.0,0.62875326]
[1747558823639,0.28322678,103950.0,103940.0,0.61913298]
[1747558824263,0.28322678,103950.0,103940.0,0.62875345]
[1747558824669,0.28322678,103950.0,103940.0,0.63837382]
[1747558825965,0.08120595,103950.0,103940.0,0.63837317]
[1747558826171,0.09082577,103950.0,103940.0,0.63837317]
[1747558826617,0.05234723,103950.0,103940.0,0.63837317]
[1747558826774,0.07158576,103950.0,103940.0,0.71837317]
[1747558827937,0.0619664,103950.0,103940.0,0.71837317]
[1747558828145,0.07158585,103950.0,103940.0,0.71837317]
[1747558829211,0.08120548,103950.0,103940.0,0.71837317]
[1747558829653,0.07158585,103950.0,103940.0,0.71837317]
[1747558831295,0.08120548,103950.0,103940.0,0.71837317]
[1747558832433,0.07158585,103950.0,103940.0,0.71837317]
[1747558832808,0.08120548,103950.0,103940.0,0.5672909]
[1747558833769,0.08120548,103950.0,103940.0,0.57651666]
[1747558833957,0.08120548,103950.0,103940.0,0.5672909]
[1747558834748,0.08120539,103950.0,103940.0,0.5672909]
[1747558834964,0.09082512,103950.0,103940.0,0.5672909]
[1747558835407,0.08120539,103950.0,103940.0,0.5672909]
[1747558835891,0.09082512,103950.0,103940.0,0.5672909]
[1747558838916,0.08120539,103950.0,103940.0,0.5672909]
[1747558839188,0.09082512,103950.0,103940.0,0.5672909]
[1747558839695,0.08998596,103950.0,103940.0,0.5672909]
[1747558841164,0.08998596,103950.0,103940.0,0.58795164]
[1747558842716,0.08998586,103950.0,103940.0,0.58795164]
[1747558843877,0.08998586,103950.0,103940.0,0.59178996]
[1747558844323,0.09960568,103950.0,103940.0,0.59178996]
[1747558844542,0.08998586,103950.0,103940.0,0.59178996]
[1747558845553,0.09960568,103950.0,103940.0,0.59178996]
[1747558846672,0.09960559,103950.0,103940.0,0.59178996]
[1747558847430,0.08036623,103950.0,103940.0,0.59178996]
[1747558847661,0.08998596,103950.0,103940.0,0.59178996]
[1747558849076,0.08998596,103950.0,103940.0,0.57647345]
[1747558851015,0.09960578,103950.0,103940.0,0.57647345]
[1747558851220,0.08998596,103950.0,103940.0,0.57647345]
[1747558851627,0.09960578,103950.0,103940.0,0.57647345]
[1747558851828,0.08998596,103950.0,103940.0,0.57647345]
[1747558852830,0.08036623,103950.0,103940.0,0.57647345]
[1747558853031,0.08998605,103950.0,103940.0,0.57647345]
[1747558853643,0.08998605,103950.0,103940.0,0.54761233]
[1747558853894,0.29200615,103950.0,103940.0,0.55723279]
[1747558854106,0.29200615,103950.0,103940.0,0.56685307]
[1747558855184,0.29200615,103950.0,103940.0,0.54761242]
[1747558855390,0.29200615,103950.0,103940.0,0.55723279]
[1747558855593,0.29200698,103950.0,103940.0,0.55723289]
[1747558855802,0.28238698,103950.0,103940.0,0.56685326]
[1747558856416,0.27276707,103950.0,103940.0,0.56685326]
[1747558856626,0.28238707,103950.0,103940.0,0.56685326]
[1747558856827,0.27276707,103950.0,103940.0,0.56685326]
[1747558858933,0.27276707,103950.0,103940.0,0.57647354]
[1747558859535,0.27276707,103950.0,103940.0,0.55723289]
[1747558860239,0.27276707,103950.0,103940.0,0.54761242]
[1747558860552,0.28238707,103950.0,103940.0,0.53560038]
[1747558860762,0.28238707,103950.0,103940.0,0.54522094]
[1747558861184,0.27276707,103950.0,103940.0,0.54522094]
[1747558861588,0.28238707,103950.0,103940.0,0.54522094]
[1747558862197,0.27276707,103950.0,103940.0,0.54522094]
[1747558862453,0.28238707,103950.0,103940.0,0.54522094]
[1747558863446,0.27276707,103950.0,103940.0,0.55484141]
[1747558863832,0.28238707,103950.0,103940.0,0.54522094]
[1747558864236,0.28238707,103950.0,103940.0,0.53560038]
[1747558864441,0.28238707,103950.0,103940.0,0.54522094]
[1747558864647,0.27276707,103950.0,103940.0,0.54522094]
[1747558864882,0.27276707,103950.0,103940.0,0.55484141]
[1747558865175,0.28238707,103950.0,103940.0,0.54522094]
[1747558865667,0.28238707,103950.0,103940.0,0.53560038]
[1747558865899,0.28238707,103950.0,103940.0,0.54522094]
[1747558866643,0.28238707,103950.0,103940.0,0.32394028]
[1747558866850,0.26314808,103950.0,103940.0,0.32394028]
[1747558868917,0.26314808,103950.0,103940.0,0.33930351]
[1747558870578,0.24390826,103950.0,103940.0,0.54134314]
[1747558870782,0.07074678,103950.0,103940.0,0.57020463]
[1747558871012,0.05150807,103950.0,103940.0,0.57020463]
[1747558871215,0.02182733,103950.0,103940.0,0.57020463]
[1747558871654,0.03144678,103950.0,103940.0,0.57020463]
[1747558871876,0.01220807,103950.0,103940.0,0.57020463]
[1747558872325,0.01220807,103950.0,103940.0,0.5548414]
[1747558872534,0.02182733,103950.0,103940.0,0.5548414]
[1747558873364,0.05014669,103950.0,103940.0,0.5548414]
[1747558873976,0.06824669,103950.0,103940.0,0.5548414]
[1747558877041,0.02182733,103950.0,103940.0,0.5548414]
[1747558877298,0.03144678,103950.0,103940.0,0.5548414]
[1747558877503,0.05034678,103950.0,103940.0,0.5526014]
[1747558878127,0.06994678,103950.0,103940.0,0.5526014]
[1747558880360,0.06032733,103950.0,103940.0,0.5526014]
[1747558880573,0.06994678,103950.0,103940.0,0.5526014]
[1747558881841,0.07956632,103950.0,103940.0,0.5526014]
[1747558884627,0.05070807,103950.0,103940.0,0.5526014]
[1747558884752,0.06032733,103950.0,103940.0,0.5526014]
[1747558884980,0.06994687,103950.0,103940.0,0.5526014]
[1747558887128,0.06032733,103950.0,103940.0,0.5526014]
[1747558887352,0.01220807,103950.0,103940.0,0.6499108]
[1747558887579,0.01220807,103950.0,103940.0,0.9899108]
[1747558887996,0.01220807,103950.0,103940.0,1.1693508]
[1747558890075,0.04850807,103950.0,103940.0,1.1693508]
[1747558890285,0.05812733,103950.0,103940.0,1.1693508]
[1747558890496,0.04850807,103950.0,103940.0,1.1693508]
[1747558890680,0.05812724,103950.0,103940.0,1.1693508]
[1747558891036,0.05812724,103950.0,103940.0,0.97173874]
[1747558893668,0.04850807,103950.0,103940.0,0.97173874]
[1747558894353,0.04850807,103950.0,103940.0,0.98708294]
[1747558895307,0.01220807,103950.0,103940.0,0.98708294]
[1747558896101,0.04850807,103950.0,103940.0,0.98708294]
[1747558897477,0.05812724,103950.0,103940.0,0.98708294]
[1747558898397,0.04850807,103950.0,103940.0,0.98708294]
[1747558899541,0.03070807,103950.0,103940.0,0.80764294]
[1747558899751,0.05902724,103950.0,103940.0,0.98704294]
[1747558899950,0.05902724,103950.0,103940.0,0.80764294]
[1747558900237,0.04940807,103950.0,103940.0,0.98704294]
[1747558902991,0.05902733,103950.0,103940.0,0.98704294]
[1747558903204,0.04940807,103950.0,103940.0,0.97169874]
[1747558904485,0.04940807,103950.0,103940.0,0.79229874]
[1747558904670,0.04940807,103950.0,103940.0,0.97165874]
[1747558905435,0.05902733,103950.0,103940.0,0.97165874]
[1747558906755,0.05902733,103950.0,103940.0,0.79229874]
[1747558911119,0.04940807,103950.0,103940.0,0.79229874]
[1747558911383,0.05902724,103950.0,103940.0,0.79229874]
[1747558913247,0.04940807,103950.0,103940.0,0.79229874]
[1747558913461,0.05902733,103950.0,103940.0,0.79229874]
[1747558914254,0.04940807,103950.0,103940.0,0.79229874]
[1747558915061,0.01220807,103950.0,103940.0,0.79229874]
[1747558915279,0.03040807,103950.0,103940.0,0.79229874]
[1747558916060,0.04850807,103950.0,103940.0,0.79229874]
[1747558920487,0.05812724,103950.0,103940.0,0.79229874]
[1747558920831,0.04850807,103950.0,103940.0,0.79229874]
[1747558923376,0.05812724,103950.0,103940.0,0.79229874]
[1747558923609,0.04850807,103950.0,103940.0,0.97165874]
[1747558926609,0.05812724,103950.0,103940.0,0.97165874]
[1747558926818,0.04850807,103950.0,103940.0,0.97165874]
[1747558932986,0.04850807,103950.0,103940.0,0.98619959]
[1747558933209,0.0138938,103950.0,103940.0,0.98619959]
[1747558934055,0.02123538,103970.0,103960.0,0.22123781]
[1747558934264,0.2101728,103970.0,103960.0,0.95693781]
[1747558934462,0.41215404,103970.0,103960.0,0.9569379]
[1747558935193,0.41215395,103970.0,103960.0,0.96612045]
[1747558935371,0.4227721,103970.0,103960.0,0.96612055]
[1747558935715,0.24345201,103970.0,103960.0,0.97573907]
[1747558935927,0.24345201,103970.0,103960.0,0.96612055]
[1747558936130,0.25223469,103970.0,103960.0,0.95650193]
[1747558936332,0.25223469,103970.0,103960.0,0.97183653]
[1747558936535,0.25423469,103970.0,103960.0,0.97183653]
[1747558937039,0.27253469,103970.0,103960.0,0.97183653]
[1747558938219,0.27253469,103970.0,103960.0,0.97183662]
[1747558938433,0.25329921,103970.0,103960.0,0.76021715]
[1747558938633,0.25329921,103970.0,103960.0,0.98145579]
[1747558938878,0.25329921,103970.0,103960.0,0.9718369]
[1747558939088,0.25329921,103970.0,103960.0,0.98145579]
[1747558939275,0.25329921,103970.0,103960.0,0.9718369]
[1747558939487,0.24368124,103970.0,103960.0,0.76021715]
[1747558940284,0.63696848,103970.0,103960.0,0.76021715]
[1747558942086,0.63696848,103970.0,103960.0,0.74488255]
[1747558945040,0.63696848,103970.0,103960.0,0.7357]
[1747558946934,0.52031064,103970.0,103960.0,0.7357]
[1747558947177,0.45764848,103970.0,103960.0,0.7357]
[1747558947491,0.63696848,103970.0,103960.0,0.7357]
[1747558950312,0.81628848,103970.0,103960.0,0.7357]
[1747558962091,0.63696848,103970.0,103960.0,0.7357]
[1747558962308,0.81628848,103970.0,103960.0,0.7357]
[1747558962719,0.45764848,103970.0,103960.0,0.7357]
[1747558963149,0.63696848,103970.0,103960.0,0.7357]
[1747558963922,0.45764848,103970.0,103960.0,0.7357]
[1747558964126,0.81628848,103970.0,103960.0,0.7357]
[1747558969612,0.81628848,103970.0,103960.0,0.74489809]
[1747558969973,0.45764848,103970.0,103960.0,0.74489809]
[1747558970189,0.81628848,103970.0,103960.0,0.74489809]
[1747558994871,0.63696848,103970.0,103960.0,0.74489809]
[1747558995118,0.81624848,103970.0,103960.0,0.74489809]
[1747558996538,0.81624848,103970.0,103960.0,0.50876837]
[1747558999145,0.81624848,103970.0,103960.0,0.49957028]
[1747559007980,1.09320848,103970.0,103960.0,0.49957028]
[1747559013897,0.73460848,103970.0,103960.0,0.49957028]
[1747559014105,0.97647064,103970.0,103960.0,0.49957028]
[1747559014718,0.73460848,103970.0,103960.0,0.49957028]
[1747559014899,1.09312848,103970.0,103960.0,0.49957028]
[1747559016034,1.09312848,103970.0,103960.0,0.50877423]
[1747559016237,1.09308848,103970.0,103960.0,0.50877423]
[1747559016455,0.73460848,103970.0,103960.0,0.50877423]
[1747559016657,1.09308848,103970.0,103960.0,0.50877423]
[1747559022187,0.97643064,103970.0,103960.0,0.50877423]
[1747559022399,1.09308848,103970.0,103960.0,0.50877423]
[1747559025277,0.73460848,103970.0,103960.0,0.50877423]
[1747559025462,1.09308848,103970.0,103960.0,0.50877423]
[1747559028898,1.20974632,103970.0,103960.0,0.49957028]
[1747559029131,1.09308848,103970.0,103960.0,0.49957028]
[1747559038133,0.79719064,103970.0,103960.0,0.49957028]
[1747559038335,1.09308848,103970.0,103960.0,0.49957028]
[1747559038634,0.73460848,103970.0,103960.0,0.49957028]
[1747559038835,1.09308848,103970.0,103960.0,0.49957028]
[1747559039346,1.09304848,103970.0,103960.0,0.49957028]
[1747559039641,1.09304848,103970.0,103960.0,0.50877474]
[1747559040543,0.73460848,103970.0,103960.0,0.50877474]
[1747559040756,1.07460848,103970.0,103960.0,0.50877474]
[1747559040960,1.09200848,103970.0,103960.0,0.50877474]
[1747559041391,0.73360848,103970.0,103960.0,0.50877474]
[1747559041592,0.95795064,103970.0,103960.0,0.50877474]
[1747559044635,0.59955064,103970.0,103960.0,0.50877474]
[1747559044847,1.07460848,103970.0,103960.0,0.50877474]
[1747559045638,1.09200848,103970.0,103960.0,0.50877474]
[1747559046557,0.73360848,103970.0,103960.0,0.50877474]
[1747559046758,1.09200848,103970.0,103960.0,0.50877474]
[1747559047572,0.73360848,103970.0,103960.0,0.50877474]
[1747559047797,1.09200848,103970.0,103960.0,0.50877474]
[1747559048807,1.05630848,103970.0,103960.0,0.50877474]
[1747559049240,0.76045064,103970.0,103960.0,0.52567474]
[1747559050009,0.76045064,103970.0,103960.0,0.54067474]
[1747559052356,0.76045064,103970.0,103960.0,0.52567474]
[1747559057540,0.76045064,103970.0,103960.0,0.54067474]
[1747559057842,0.76045064,103970.0,103960.0,0.52567474]
[1747559058461,0.76045064,103970.0,103960.0,0.50877474]
[1747559059715,0.58125064,103970.0,103960.0,0.50877474]
[1747559059895,0.76045064,103970.0,103960.0,0.52547474]
[1747559060094,0.58125064,103970.0,103960.0,0.52547474]
[1747559060302,0.76045064,103970.0,103960.0,0.54047474]
[1747559060877,0.76045064,103970.0,103960.0,0.52547474]
[1747559065206,0.76045064,103970.0,103960.0,0.50877474]
[1747559069818,0.48349064,103970.0,103960.0,0.50877474]
[1747559069953,0.48349064,103970.0,103960.0,0.52547474]
[1747559071163,0.48349064,103970.0,103960.0,0.50877474]
[1747559073582,0.50029064,103970.0,103960.0,0.50877474]
[1747559075559,0.48349064,103970.0,103960.0,0.50877474]
[1747559076268,0.38614124,103970.0,103960.0,0.52637474]
[1747559077116,0.37652318,103970.0,103960.0,0.52637474]
[1747559079671,0.37652318,103970.0,103960.0,0.50877474]
[1747559082814,0.37652318,103970.0,103960.0,0.52667474]
[1747559083479,0.19736318,103970.0,103960.0,0.52667474]
[1747559083683,0.37652318,103970.0,103960.0,0.53629382]
[1747559083887,0.37652318,103970.0,103960.0,0.52667474]
[1747559084605,0.19736318,103970.0,103960.0,0.53817387]
[1747559084751,0.37652318,103970.0,103960.0,0.53817387]
[1747559085750,0.19736318,103970.0,103960.0,0.53399052]
[1747559085948,0.19736318,103970.0,103960.0,0.51609052]
[1747559086105,0.37652318,103970.0,103960.0,0.51609052]
[1747559086514,0.19736318,103970.0,103960.0,0.51609052]
[1747559086741,0.37652318,103970.0,103960.0,0.53399052]
[1747559087741,0.19736318,103970.0,103960.0,0.53399052]
[1747559087923,0.37652318,103970.0,103960.0,0.53399052]
[1747559089765,0.37652318,103970.0,103960.0,0.51609052]
[1747559089965,0.39452318,103970.0,103960.0,0.51609052]
[1747559090350,0.37652318,103970.0,103960.0,0.51609052]
[1747559092536,0.37652318,103970.0,103960.0,0.5257096]
[1747559092950,0.37652318,103970.0,103960.0,0.51609052]
[1747559093385,0.01461751,103970.0,103960.0,0.76474703]
[1747559093564,0.03385299,103970.0,103960.0,0.77954703]
[1747559094110,0.03285252,103970.0,103960.0,0.77954703]
[1747559094423,0.05008818,103970.0,103960.0,0.79588163]
[1747559094639,0.04047021,103970.0,103960.0,0.79588163]
[1747559094864,0.05008818,103970.0,103960.0,0.79588163]
[1747559095299,0.24245136,103970.0,103960.0,0.7862632]
[1747559095509,0.24245136,103970.0,103960.0,0.79588163]
[1747559096088,0.23283395,103970.0,103960.0,0.78626339]
[1747559096292,0.2424521,103970.0,103960.0,0.79588201]
[1747559096497,0.2424521,103970.0,103960.0,0.78438288]
[1747559096845,0.24245201,103970.0,103960.0,0.78438288]
[1747559097364,0.0308528,103970.0,103960.0,0.78438288]
[1747559097574,0.04047068,103970.0,103960.0,0.79400131]
[1747559097986,0.23283386,103970.0,103960.0,0.7940014]
[1747559098193,0.24245183,103970.0,103960.0,0.78438232]
[1747559098392,0.24245247,103970.0,103960.0,0.7747638]
[1747559099479,0.24245247,103970.0,103960.0,0.78438232]
[1747559099686,0.23283432,103970.0,103960.0,0.79400075]
[1747559100063,0.04047114,103970.0,103960.0,0.79400075]
[1747559100722,0.03085317,103970.0,103960.0,0.79400075]
[1747559101922,0.0308527,103970.0,103960.0,0.79400075]
[1747559103868,0.0308527,103970.0,103960.0,0.97312075]
[1747559104823,0.002,103970.0,103960.0,1.31312075]
[1747559104982,0.01161741,103970.0,103960.0,1.31312075]
[1747559105416,0.02123501,103970.0,103960.0,1.31312075]
[1747559105846,0.03085279,103970.0,103960.0,1.31212075]
[1747559106022,0.02123501,103970.0,103960.0,1.31212075]
[1747559106254,0.03085279,103970.0,103960.0,1.31412075]
[1747559106844,0.03085279,103970.0,103960.0,1.29932075]
[1747559107258,0.02123501,103970.0,103960.0,1.29932075]
[1747559107613,0.03085279,103970.0,103960.0,1.28398615]
[1747559107980,0.01161741,103970.0,103960.0,1.28598615]
[1747559108182,0.02123501,103970.0,103960.0,1.28598615]
[1747559108979,0.0308527,103970.0,103960.0,1.28598615]
[1747559109401,0.01161741,103970.0,103960.0,1.28598615]
[1747559109673,0.02123501,103970.0,103960.0,1.28598615]
[1747559110019,0.02123501,103970.0,103960.0,1.06221685]
[1747559111395,0.0308527,103970.0,103960.0,1.04441685]
[1747559111610,0.02123501,103970.0,103960.0,1.06191685]
[1747559113033,0.02123501,103970.0,103960.0,1.07724007]
[1747559113237,0.02123501,103970.0,103960.0,1.05974007]
[1747559114063,0.01161741,103970.0,103960.0,1.07744007]
[1747559114270,0.02123501,103970.0,103960.0,1.07744007]
[1747559114511,0.01161741,103970.0,103960.0,1.07744007]
[1747559114821,0.01161741,103970.0,103960.0,1.05974007]
[1747559115502,0.002,103970.0,103960.0,1.07744007]
[1747559115720,0.002,103970.0,103960.0,1.19989032]
[1747559116520,0.02841741,103970.0,103960.0,0.88062007]
[1747559116747,0.02841741,103970.0,103960.0,1.05970007]
[1747559116931,0.03803492,103970.0,103960.0,0.88062007]
[1747559117130,0.03803492,103970.0,103960.0,0.96062007]
[1747559117386,0.04765252,103970.0,103960.0,0.96062007]
[1747559117581,0.03803492,103970.0,103960.0,0.96062007]
[1747559118580,0.02841741,103970.0,103960.0,0.96062007]
[1747559118811,0.03803492,103970.0,103960.0,0.96062007]
[1747559119422,0.02841741,103970.0,103960.0,0.96062007]
[1747559120095,0.002,103970.0,103960.0,0.96062007]
[1747559120324,0.002,103970.0,103960.0,1.07402947]
[1747559121524,0.002,103970.0,103960.0,1.05870625]
[1747559123809,0.002,103970.0,103960.0,1.04260625]
[1747559124028,0.002,103970.0,103960.0,1.05199802]
[1747559126532,0.25681653,103970.0,103960.0,0.37421386]
[1747559126756,0.24719902,103970.0,103960.0,0.57644165]
[1747559126969,0.25681717,103970.0,103960.0,0.58606027]
[1747559127181,0.06445399,103970.0,103960.0,0.59567879]
[1747559127414,0.05483584,103970.0,103960.0,0.60529722]
[1747559127644,0.24719902,103970.0,103960.0,0.56723719]
[1747559127871,0.24719902,103970.0,103960.0,0.35561763]
[1747559128090,0.24719902,103970.0,103960.0,0.3748557]
[1747559128305,0.24719902,103970.0,103960.0,0.57685627]
[1747559130464,0.24719902,103970.0,103960.0,0.58647507]
[1747559131711,0.24719902,103970.0,103960.0,0.59609378]
[1747559132160,0.26643459,103970.0,103960.0,0.59609332]
[1747559132364,0.05483529,103970.0,103960.0,0.59609332]
[1747559132565,0.06445326,103970.0,103960.0,0.59609276]
[1747559133178,0.25681644,103970.0,103960.0,0.58647433]
[1747559133381,0.019,103970.0,103960.0,0.93609239]
[1747559134444,0.019,103970.0,103960.0,0.94529402]
[1747559135959,0.04531741,103970.0,103960.0,0.94529402]
[1747559137709,0.04531741,103970.0,103960.0,0.9606287]
[1747559142157,0.05493501,103970.0,103960.0,0.9606287]
[1747559143664,0.04531741,103970.0,103960.0,0.9606287]
[1747559144204,0.02861741,103970.0,103960.0,0.9606287]
[1747559145470,0.002,103970.0,103960.0,0.9606287]
[1747559146000,0.01161741,103970.0,103960.0,0.9606287]
[1747559146741,0.002,103970.0,103960.0,0.9606287]
[1747559146879,0.01161741,103970.0,103960.0,0.9606287]
[1747559147218,0.02721741,103970.0,103960.0,0.9606287]
[1747559147981,0.0176,103970.0,103960.0,0.9606287]
[1747559148807,0.0176,103970.0,103960.0,0.94529402]
[1747559149006,0.02721732,103970.0,103960.0,0.94529402]
[1747559149340,0.0176,103970.0,103960.0,0.94529402]
[1747559149542,0.0176,103970.0,103960.0,1.04260342]
[1747559153400,0.01536,103970.0,103960.0,1.04260342]
[1747559154338,0.01536,103970.0,103960.0,1.04192768]
[1747559154544,0.03136,103970.0,103960.0,1.04192768]
[1747559156104,0.03140723,103970.0,103960.0,1.04192768]
[1747559160519,0.06025993,103970.0,103960.0,0.94461828]
[1747559160887,0.05064206,103970.0,103960.0,0.94461828]
[1747559161880,0.06025966,103970.0,103960.0,0.94461828]
[1747559166244,0.05064206,103970.0,103960.0,0.94461828]
[1747559171726,0.04102455,103970.0,103960.0,0.94461828]
[1747559171957,0.05064206,103970.0,103960.0,0.94461828]
[1747559173304,0.04102455,103970.0,103960.0,0.94461828]
[1747559173515,0.05064196,103970.0,103960.0,0.94461828]
[1747559174454,0.03140723,103970.0,103960.0,0.94461828]
[1747559175133,0.04102455,103970.0,103960.0,0.94461828]
[1747559176020,0.01540723,103970.0,103960.0,0.94461828]
[1747559176186,0.02502455,103970.0,103960.0,0.94461828]
[1747559176574,0.04242455,103970.0,103960.0,0.94461828]
[1747559176829,0.03280723,103970.0,103960.0,0.94461828]
[1747559176978,0.04242455,103970.0,103960.0,0.94461828]
[1747559186319,4.723e-05,103970.0,103960.0,0.94461828]
[1747559186974,0.01634723,103970.0,103960.0,0.94461828]
[1747559187215,0.03364723,103970.0,103960.0,0.94461828]
[1747559188123,0.01634723,103970.0,103960.0,0.94461828]
[1747559188867,0.03364723,103970.0,103960.0,0.94461828]
[1747559192868,0.04326455,103970.0,103960.0,0.94461828]
[1747559193072,0.03364723,103970.0,103960.0,0.94461828]
[1747559196695,0.04326455,103970.0,103960.0,0.94461828]
[1747559202208,0.03364723,103970.0,103960.0,0.94461828]
[1747559204417,0.03364723,103970.0,103960.0,0.70015502]
[1747559206141,0.03364723,103970.0,103960.0,0.71549206]
[1747559214281,0.03364723,103970.0,103960.0,0.72510326]
[1747559216277,0.03364723,103970.0,103960.0,0.70976622]
[1747559217525,0.03364723,103970.0,103960.0,0.88884622]
[1747559218048,0.04326455,103970.0,103960.0,0.88884622]
[1747559220636,0.04326455,103970.0,103960.0,0.70976622]
[1747559223942,0.05288215,103970.0,103960.0,0.70976622]
[1747559224294,0.06249984,103970.0,103960.0,0.70976622]
[1747559224489,0.05288196,103970.0,103960.0,0.70976622]
[1747559224685,0.07211716,103970.0,103960.0,0.70976622]
[1747559224893,0.08173494,103970.0,103960.0,0.70976622]
[1747559225099,0.07211716,103970.0,103960.0,0.70976622]
[1747559225671,0.06249947,103970.0,103960.0,0.70976622]
[1747559230191,0.05288196,103970.0,103960.0,0.70976622]
[1747559230532,0.04326455,103970.0,103960.0,0.70976622]
[1747559230718,0.05288206,103970.0,103960.0,0.70976622]
[1747559230919,0.04326455,103970.0,103960.0,0.70976622]
[1747559232985,0.05288196,103970.0,103960.0,0.70976622]
[1747559233804,0.04326455,103970.0,103960.0,0.70976622]
[1747559239273,0.03364723,103970.0,103960.0,0.70976622]
[1747559239422,0.04326455,103970.0,103960.0,0.70976622]
[1747559239627,0.03364723,103970.0,103960.0,0.70976622]
[1747559242341,0.04326464,103970.0,103960.0,0.70976622]
[1747559242492,0.03364723,103970.0,103960.0,0.70976622]
[1747559243355,0.04326455,103970.0,103960.0,0.70976622]
[1747559247635,0.05288206,103970.0,103960.0,0.70976622]
[1747559247836,0.04326455,103970.0,103960.0,0.70976622]
[1747559252803,0.03364723,103970.0,103960.0,0.70976622]
[1747559254225,0.04326464,103970.0,103960.0,0.70976622]